Cogmind - Beta 15 @@@ ROGUE MODE // 2025.09.01 @ 22:23:21 Player: winnking222 Result: Destroyed by G-67 Veteran with Plasma Rifle Performance ------------- Evolutions (6) 3000 Regions Visited (15) 3000 Robots Destroyed (257) 1285 Value Destroyed (10400) 10400 Prototype IDs (25) 500 Alien Tech Used (0) 0 Bonus (5336) 5336 TOTAL SCORE: 23521 Bonus ------- High Alert Combat Kills 2657 Follower Combat Kills 3708 Entered Garrisons 400 Met Imprinter 300 Was Imprinted 300 Built Enhanced Grunts 300 Met R17 at Cetus 500 Friendly Fire -2829 Cogmind --------- Core Integrity 0/1150 Matter 205/300 Energy 100/100 System Corruption 7% Temperature Cool (0) Movement Core (50) Location -4/Factory Parts ------- > --- POWER (2) -------- (None) > --- PROPULSION (6) --- (None) > --- UTILITY (8) ------ (None) > --- WEAPON (3) ------- (None) > --- INVENTORY (5) ---- Myomer Leg Centrium Wheel Advanced Energy Well (500) Advanced Variable Charge Gun GAL Module Peak State ------------ > --- POWER ------------ Reinforced Fission Core Zionite Light DM Reactor > --- PROPULSION ------- Heavy Treads Centrium Heavy Treads Centrium Heavy Treads > --- UTILITY ---------- Experimental Heat Sink Advanced Cooling System Huge Storage Unit Visual Processing Unit Improved Targeting Computer Improved Targeting Computer Centrium Medium Armor Plating Graphene Brace > --- WEAPON ----------- KE Penetrator Advanced KE Penetrator Advanced KE Penetrator > --- INVENTORY -------- Antimatter Reactor Spiked Medium Treads Armored Medium Treads Armored Medium Treads Enhanced Flexi-carbon Leg Enhanced Flexi-carbon Leg Cooled Airjet High-capacity Storage Unit Advanced Energy Well Zionite Weapon Casing Centrium Medium Armor Plating Wave Gun Cooled Plasma Rifle Cooled Plasma Rifle Advanced Variable Charge Gun Advanced Variable Charge Gun Neutron Cannon Advanced KE Penetrator Heavy Gauss Cannon Heavy Gauss Cannon Guided EMP Blaster Long-range Missile Launcher Long-range Missile Launcher GAL Module [Rating: 136] Favorites ----------- Power Heavy Ion Engine Engine Heavy Ion Engine Power Core Reinforced Fission Core Reactor Quantum Reactor Propulsion Carbon-fiber Leg Treads Advanced Treads Leg Carbon-fiber Leg Wheel Wheel Hover Unit Cooled Airjet Flight Unit Cesium-ion Thruster Utility Improved Targeting Computer Device Advanced Heat Sink Storage Large Storage Unit Processor Improved Targeting Computer Hackware Hacking Suite Protection Hardened Light Armor Plating Weapon Heavy Assault Rifle Energy Gun Advanced Variable Charge Gun Energy Cannon Heavy Plasma Cannon Ballistic Gun Heavy Assault Rifle Ballistic Cannon Heavy Gauss Cannon Launcher Rocket Launcher Piercing Weapon Makeshift Spear Special Melee Weapon Advanced Datajack Build | -11 -10 -9 -9 -7 -6 -6 -6 -6 -6 -6 -6 -5 -4 -4 -4 ------- Run | Yrd Mat Mat Min Zio Pro Fac Gar Fac Ext Cet Arc Fac Fac Gar Fac Slots Evolved 12 | . . 2 . . . 6 . . . . . 2 2 . . Power 1 | . . . . . . . . . . . . 1 . . . Propulsion 4 | . . 1 . . . 2 . . . . . 1 . . . Utility 6 | . . . . . . 4 . . . . . . 2 . . Weapon 1 | . . 1 . . . . . . . . . . . . . Parts Attached 224 | 7 11 23 . 1 7 19 18 15 29 22 10 16 25 11 10 Power 24 | 1 . 3 . . 1 . 2 1 5 4 . 2 1 2 2 Engine 11 | 1 . 3 . . 1 . 2 . 3 1 . . . . . Core 5 | . . . . . . . . . 1 1 . 2 . . 1 Reactor 8 | . . . . . . . . 1 1 2 . . 1 2 1 Propulsion 74 | 2 4 8 . . 3 10 8 3 7 3 2 7 12 1 4 Treads 19 | . 2 6 . . 3 . . . . . 2 2 4 . . Leg 49 | 2 2 . . . . 10 8 3 5 3 . 4 7 1 4 Wheel 2 | . . 1 . . . . . . . . . . 1 . . Hover 1 | . . . . . . . . . . . . 1 . . . Flight 3 | . . 1 . . . . . . 2 . . . . . . Utility 66 | 2 5 3 . . 2 7 4 5 7 10 2 5 8 5 1 Device 31 | 1 1 . . . . 3 2 1 7 3 1 3 5 3 1 Storage 7 | 1 1 . . . . . . 1 . 3 . . 1 . . Processor 5 | . . . . . . 1 1 . . . . 1 1 1 . Hackware 1 | . . . . . . 1 . . . . . . . . . Protection 22 | . 3 3 . . 2 2 1 3 . 4 1 1 1 1 . Artifact . | . . . . . . . . . . . . . . . . Weapon 60 | 2 2 9 . 1 1 2 4 6 10 5 6 2 4 3 3 Energy Gun 10 | 1 1 1 . . . . . . . 2 3 1 1 . . Energy Cannon 7 | . . . . . . . . . 6 1 . . . . . Ballistic Gun 29 | 1 . 5 . . 1 2 2 2 4 2 2 1 3 1 3 Ballistic Cannon 7 | . . 2 . . . . 1 2 . . . . . 2 . Launcher 5 | . 1 1 . . . . 1 2 . . . . . . . Special Weapon . | . . . . . . . . . . . . . . . . Impact Weapon . | . . . . . . . . . . . . . . . . Slashing Weapon . | . . . . . . . . . . . . . . . . Piercing Weapon 1 | . . . . 1 . . . . . . . . . . . Special Melee Weapon 1 | . . . . . . . . . . . 1 . . . . Unidentified Prototypes 22 | . . 3 . . . . . 5 . 10 1 2 1 . . Corrupted Parts 5 | . . . . . . . . . . 1 4 . . . . System Corruption 23 | . . . . . . . . . . 1 22 . . . . Parts Lost 66 | . 3 2 . . 4 4 9 7 6 . . 4 13 1 13 Power 5 | . . . . . . . . 1 1 . . 1 1 . 1 Propulsion 22 | . 1 . . . 1 2 3 4 2 . . 1 6 . 2 Utility 20 | . . . . . 1 1 4 2 3 . . 1 2 1 5 Weapon 19 | . 2 2 . . 2 1 2 . . . . 1 4 . 5 Highest Loss Streak 12 | . 3 1 . . 1 2 2 3 4 . . 1 9 1 12 To Critical Strikes . | . . . . . . . . . . . . . . . . Average Backups 15 | 4 13 14 14 13 12 8 11 12 16 18 19 21 19 17 17 Power 1 | . . 1 1 1 1 1 1 1 . 1 1 . . . . Propulsion 2 | 2 3 4 4 4 3 1 2 . . . 2 4 3 3 2 Utility 4 | . 5 7 7 6 6 4 3 3 1 3 5 6 4 4 5 Weapon 6 | . 3 2 2 1 1 1 4 8 13 12 11 9 11 9 7 Tool/Special . | . . . . . . . . . . . . . . . . Unused Backups 43 | . 2 8 . 2 3 1 1 2 2 3 2 3 1 4 9 Power 5 | . 2 . . . 1 . . . . . . . . 1 1 Propulsion 16 | . . 5 . 1 2 1 . . . . 1 3 . 1 2 Utility 11 | . . 1 . 1 . . 1 . . 3 . . 1 . 4 Weapon 11 | . . 2 . . . . . 2 2 . 1 . . 2 2 Tool/Special . | . . . . . . . . . . . . . . . . Average Slot Usage (%) 93 | . 99 99 100 100 97 97 90 88 93 98 96 88 82 88 86 Engine 5 | . 14 11 11 11 11 6 6 3 3 2 . . . . . Reactor 3 | . . . . . . . . 1 2 3 6 8 3 9 9 Treads 10 | . 4 30 33 33 29 1 . . . . . 8 11 . . Leg 17 | . 23 . . . . 30 32 28 24 33 32 15 8 21 20 Device 10 | . 8 . . . . 14 9 13 20 17 13 7 16 20 20 Storage 7 | . 13 11 11 11 11 6 6 6 6 6 6 5 5 5 4 Processor 5 | . . . . . . . 11 11 6 6 6 8 13 10 9 Protection 7 | . 6 11 11 11 11 8 3 3 1 8 11 10 3 5 4 Energy Gun 2 | . 13 5 . . . . . . . . . . 3 11 . Energy Cannon 1 | . . . . . . . . . 18 . 1 . . . . Ballistic Gun 14 | . 11 21 33 31 25 15 9 14 1 17 11 17 9 1 4 Ballistic Cannon 1 | . . 4 . . . . 2 1 . . . . . 2 9 Peak Build Rating 136 | 7 11 25 25 27 32 59 58 62 75 103 111 127 136 132 129 Average Rating 68 | 5 9 18 25 25 29 54 49 53 66 90 96 117 116 126 123 On Entrance 58 | . 7 11 25 25 26 32 58 48 47 74 101 103 127 123 125 Naked Turns 12 | . . . . . . . . . . . . . . . 12 Heaviest Build 145 | 15 36 43 42 42 50 56 68 70 89 133 133 145 138 118 115 Greatest Support 230 | 20 40 66 66 66 66 85 85 75 85 111 111 230 230 120 125 Greatest Overweight (x) 4 | . 1 3 . . 4 . . 1 1 1 1 1 3 . 1 Average Overweight (x) . | . . . . . . . . . . . 1 . . . . Largest Inventory Capacity 25 | 8 15 15 15 15 15 15 15 20 20 25 25 25 25 20 20 Average Capacity 18 | 7 14 15 15 15 15 15 15 17 20 22 25 25 22 20 19 Most Carried 25 | 7 15 15 15 15 15 15 15 19 20 25 25 25 25 20 20 Average Carried 18 | 5 13 14 15 14 14 10 14 15 19 22 24 24 22 19 19 Final Capacity 25 | 8 15 15 15 15 15 15 15 20 20 25 25 25 20 20 5 Final Carried 25 | 6 14 15 15 15 15 15 15 19 20 25 25 25 20 20 5 Class Distribution -------------------- 31% | Scavenger-Gunner 20% | Tank 18% | Scavenger-Tank 13% | Scavenger-Mutant 10% | Mutant 6% | Gunner Dominant Class ---------------- Mutant | -10/Materials Tank | -9/Materials Tank | -9/Mines Tank | -7/Zion Mutant | -6/Proximity Caves Scavenger-Mutant | -6/Factory Scavenger-Gunner | -6/Garrison Scavenger-Gunner | -6/Factory Scavenger-Gunner | -6/Extension Scavenger-Tank | -6/Cetus Scavenger-Mutant | -6/Archives Scavenger-Tank | -5/Factory Scavenger-Tank | -4/Factory Scavenger-Gunner | -4/Garrison Gunner | -4/Factory Resources | -11 -10 -9 -9 -7 -6 -6 -6 -6 -6 -6 -6 -5 -4 -4 -4 ----------- Run | Yrd Mat Mat Min Zio Pro Fac Gar Fac Ext Cet Arc Fac Fac Gar Fac Matter Collected 9134 | 283 299 1165 . 9 350 692 876 472 503 812 470 1173 1001 371 658 Remotely . | . . . . . . . . . . . . . . . . Salvage Created 12128 | 121 538 1684 . . 767 650 1086 754 1034 485 458 1888 1941 26 696 Parts 556 | 9 43 101 2 . 22 18 39 26 38 18 29 73 115 . 23 Haulers Intercepted 11 | . 1 5 . . . 1 . 1 . . . 3 . . . Recyclers Shooed 9 | 1 . . . . . 1 . 1 . . . 4 . . 2 Parts Field Recycled . | . . . . . . . . . . . . . . . . Retrieved Matter . | . . . . . . . . . . . . . . . . Parts Self-Destructed 27 | . . . . . 27 . . . . . . . . . . Prevented 14 | . . . . . 14 . . . . . . . . . . Kills | -11 -10 -9 -9 -7 -6 -6 -6 -6 -6 -6 -6 -5 -4 -4 -4 ------- Run | Yrd Mat Mat Min Zio Pro Fac Gar Fac Ext Cet Arc Fac Fac Gar Fac Combat Hostiles Destroyed 182 | . 13 34 . . 10 8 28 9 12 7 3 18 28 . 12 Melee 2 | . . . . . 1 . . . . . . . 1 . . Guns 125 | . 10 25 . . 9 8 13 3 . 7 3 18 26 . 3 Cannons 25 | . . 4 . . . . 7 1 10 . . . . . 3 AOE 27 | . 3 5 . . . . 8 5 . . . . . . 6 Classes Destroyed 18 | 2 7 2 . . 2 . 1 . 1 . . 2 1 . . Worker 12 | . 1 1 1 . . 2 . . . . . . 4 . 3 Builder 12 | . 2 2 . . . . . . 1 . . . 4 . 3 Tunneler 3 | 2 1 . . . . . . . . . . . . . . Hauler 11 | . 1 5 . . . 1 . 1 . . . 3 . . . Recycler 12 | 1 . 1 . . . 1 . 2 2 . . 3 1 . 1 Operator 13 | . 1 . . . . . . 1 2 . 8 . . . 1 Watcher 10 | . 1 4 . . . . . 1 2 1 . . 1 . . Swarmer 44 | . 3 8 . . . 4 9 2 3 4 . 4 7 . . Saboteur 1 | . . . . . . . . . . . . . 1 . . Grunt 77 | . 10 15 . . 7 3 17 3 3 1 . 5 12 . 1 Brawler 2 | . . 1 . . . . . 1 . . . . . . . Duelist 3 | . . . . . 2 . . . . . . . 1 . . Sentry 21 | . . 10 . . . 1 1 . 4 . 3 . 1 . 1 Specialist 4 | . . . . . . . . . . . . 3 . . 1 Hunter 14 | . . . . . 1 . . 3 . . . 3 2 . 5 Programmer 10 | . . . . . . . 1 . . . . 2 3 . 4 Heavy 2 | . . . . . . . . . . . . 1 1 . . Behemoth 2 | . . . . . . . . . 2 . . . . . . Cetus Guard 2 | . . . . . . . . . . 2 . . . . . Z-Courier 3 | . . . . . . . . 1 . . . 1 1 . . Savage 1 | . . . . . . . . . . 1 . . . . . Best Kill Streak 13 | 3 7 5 1 . 3 3 4 6 4 2 3 7 13 . 9 Combat Bots Only 8 | . 4 4 . . 3 3 4 3 4 2 2 7 8 . 7 Max Kills in Single Turn 3 | 1 2 2 1 . 1 2 2 2 1 2 1 2 3 . 2 Gunslinging 1 | . . 1 . . . . 1 . . . . 1 1 . . Exploded 2 | . 1 1 . . . . 2 2 . . . . . . 2 Melee 1 | . . . . . 1 . . . . . . . 1 . . Uniques/NPCs Destroyed 1 | . . . . . . . . . . 1 . . . . . A7 (-6/Cetus) Combat | -11 -10 -9 -9 -7 -6 -6 -6 -6 -6 -6 -6 -5 -4 -4 -4 -------- Run | Yrd Mat Mat Min Zio Pro Fac Gar Fac Ext Cet Arc Fac Fac Gar Fac Hostile Shots Fired 1682 | . 87 123 . . 57 131 145 55 150 46 14 219 315 . 340 Missed 523 | . 23 35 . . 11 58 41 24 64 16 7 39 94 . 111 Hits 1159 | . 64 88 . . 46 73 104 31 86 30 7 180 221 . 229 Melee 20 | . . . . . 1 . . . . . . . 8 . 11 Projectile 1139 | . 64 88 . . 45 73 104 31 86 30 7 180 213 . 218 AOE 2 | . . . . . . 1 1 . . . . . . . . Critical Strikes 47 | . 1 1 . . . . 1 2 . 8 . 2 17 . 15 Actively Blocked 31 | . . . . . . . . . . . . . 17 . 14 Part Disruptions 5 | . . . . . . . . . . . . . . . 5 Damage Taken 22072 | . 836 1179 . . 1060 1201 2128 738 995 511 158 3686 4737 66 4777 Core 2396 | . 127 178 . . 136 43 202 184 55 55 . 250 352 . 814 Absorbed by Shields 276 | . . . . . . . . . 79 197 . . . . . Reduced by Siege Mode 446 | . . . . . . . . . . . . 236 210 . . Redirected to Shielding 153 | . . . . . . . . 153 . . . . . . . Ignored by Resistances 178 | . . . . . . . . . 21 147 . . 10 . . Regen/Repaired (Parts) 511 | . . . . 24 . 130 . . . 36 69 252 . . . Core Remaining (%) 56 | 100 49 . . . 21 . . . . . 36 75 . . . Volleys Fired 691 | 6 64 109 . 1 30 62 60 32 49 33 45 77 70 11 42 Largest 3 | 2 2 3 . 3 3 3 3 3 3 3 3 3 3 3 3 Hottest 720 | 70 83 110 . 69 79 84 84 80 270 95 162 103 240 720 137 Shots Fired 1742 | 12 113 309 . 3 78 133 124 70 148 96 94 231 205 33 93 Gun 1431 | 12 101 266 . 3 78 133 94 57 . 96 79 231 205 33 43 Cannon 271 | . . 40 . . . . 20 8 148 . 15 . . . 40 Launcher 40 | . 12 3 . . . . 10 5 . . . . . . 10 Special . | . . . . . . . . . . . . . . . . Kinetic 1341 | 6 47 247 . 3 78 133 114 65 . 96 63 231 175 . 83 Thermal 297 | 6 49 . . . . . . . 148 . 31 . 30 33 . Explosive 37 | . 12 3 . . . . 10 5 . . . . . . 7 Electromagnetic 67 | . 5 59 . . . . . . . . . . . . 3 Robot Hit Streak 28 | 6 7 18 . . 21 9 8 28 11 23 8 26 20 11 14 Robot Miss Streak 6 | 2 3 6 . . 1 6 4 5 4 4 2 4 4 . 5 Penetration Max 2 | . . . . . . 1 . 1 . 2 1 1 1 . 1 Secondary Targets 23 | . 2 2 . . 3 1 2 . . . . 5 8 . . Max Gunslinging Chain 1 | . 1 1 . . 1 1 1 . . . . 1 1 . . Shots Hit Robots 1080 | 8 61 177 . . 68 78 74 45 77 73 57 155 144 4 59 Core Hits 537 | 4 38 70 . . 31 36 56 28 32 33 27 55 74 3 50 Critical Kills 21 | . . . . . . 1 1 . 2 2 1 4 10 . . Critical Parts Destroyed 43 | . . 1 . . . 2 . . . 7 2 16 15 . . Critical Strikes 78 | . 1 4 . . 2 3 3 1 2 9 3 21 25 . 4 Burn 1 | . 1 . . . . . . . . . . . . . . Meltdown 2 | . . . . . . . . . 2 . . . . . . Destroy 63 | . . 1 . . . 3 1 . . 9 3 21 25 . . Blast 9 | . . 2 . . . . 2 1 . . . . . . 4 Corrupt 1 | . . 1 . . . . . . . . . . . . . Impale 2 | . . . . . 2 . . . . . . . . . . Melee Attacks 17 | . . . . 1 7 . . . . . 9 . . . . Impact . | . . . . . . . . . . . . . . . . Slashing . | . . . . . . . . . . . . . . . . Piercing 8 | . . . . 1 7 . . . . . . . . . . Sneak Attacks 8 | . . . . . 1 . . . . . 7 . . . . Combat Hostiles . | . . . . . . . . . . . . . . . . Follow-up Attacks . | . . . . . . . . . . . . . . . . Damage Inflicted 32677 | 115 1300 3368 7 . 1358 1800 3010 1928 2482 2023 1702 4511 4845 166 4062 Guns 20747 | 102 727 2323 . . 987 1541 1261 634 . 2023 1131 4494 4591 166 767 Cannons 5074 | . . 377 . . . . 726 153 2469 . 410 . . . 939 Explosions 6305 | . 570 655 . . . 235 1023 1140 . . 161 . 251 . 2270 Melee 371 | . . . . . 371 . . . . . . . . . . Ramming 180 | 13 3 13 7 . . 24 . 1 13 . . 17 3 . 86 Kinetic 21257 | 40 314 2250 . . 987 1541 1987 787 . 2023 1106 4494 4022 . 1706 Thermal 5089 | 62 344 139 . . . 235 . 509 2469 . 596 . 569 166 . Explosive 4830 | . 570 516 . . . . 1023 631 . . . . 251 . 1839 Electromagnetic 950 | . 69 450 . . . . . . . . . . . . 431 Impact . | . . . . . . . . . . . . . . . . Slashing . | . . . . . . . . . . . . . . . . Piercing 371 | . . . . . 371 . . . . . . . . . . Highest Corruption 25 | . . . . . 1 8 9 9 9 10 25 5 5 2 7 Average Corruption 5 | . . . . . 1 7 9 9 9 9 5 2 3 2 2 Corruption Purged 11 | . . . . . . . . . . . 7 . 4 . . Corruption Blocked . | . . . . . . . . . . . . . . . . Effects 253 | . . . . . 6 5 50 17 49 45 33 9 14 17 8 Message Errors 52 | . . . . . 1 1 9 3 15 10 5 3 . 2 3 Matter Fused 72 | . . . . . 1 2 13 1 15 15 9 2 7 5 2 Heat Flow Errors 21 | . . . . . 1 . 7 1 3 2 3 . 1 3 . Energy Discharges 33 | . . . . . 1 . 5 3 5 8 5 2 1 1 2 Parts Rejected 3 | . . . . . . . . 2 . . . . 1 . . Parts Fused 5 | . . . . . . . 2 1 . . . . . 2 . Data Loss (minor) 29 | . . . . . 1 . 9 1 4 3 3 2 3 3 . Data Loss (major) 14 | . . . . . 1 1 3 1 4 . 3 . 1 . . Misfires 8 | . . . . . . . . 2 1 1 3 . . . 1 Alerts 8 | . . . . . . . 1 1 2 2 1 . . 1 . Weapon Failures 8 | . . . . . . 1 1 1 . 4 1 . . . . Overload Shots 3 | . . . . . . . . . . . . . . 3 . Overflow Damage 876 | . . 31 . . 40 82 81 289 41 . 33 . 99 . 180 Projectiles 291 | . . . . . . . 54 11 41 . 33 . . . 152 Explosions 517 | . . 31 . . . 82 27 278 . . . . 99 . . Melee 68 | . . . . . 40 . . . . . . . . . 28 Knockbacks 23 | . . 3 1 . . 1 7 . . . . 1 . . 10 Impact 4 | . . . 1 . . 1 . . . . . 1 . . 1 Kinetic 17 | . . 3 . . . . 6 . . . . . . . 8 Secondary 2 | . . . . . . . 1 . . . . . . . 1 Self-Inflicted Damage 712 | . 102 65 . . . 117 281 . . . . . 99 . 48 Shots 19 | . 3 2 . . . 2 7 . . . . . 1 . 4 Rammed 5 | . . 1 . . . . . . . . . 2 . . 2 Targets Rammed 21 | 5 1 1 1 . . 3 . 1 2 . . 2 1 . 4 Kicked 14 | 5 1 . . . . 3 . 1 2 . . . . . 2 Crushed 2 | . . . 1 . . . . . . . . . 1 . . Highest Temperature 373 | 18 273 373 . 18 221 . 235 210 203 196 207 256 157 295 313 Average Temperature 80 | 9 91 83 . 10 55 . 71 141 49 99 73 66 26 147 155 Received Heat Transfer 3951 | . 390 372 . . 189 165 630 132 251 31 9 519 810 . 453 Effects 4 | . 2 2 . . . . . . . . . . . . . Shutdowns 1 | . . 1 . . . . . . . . . . . . . Interference 2 | . 2 . . . . . . . . . . . . . . Short Circuit 1 | . . 1 . . . . . . . . . . . . . Siege Activations 8 | . . . . . . . . . . . . 5 3 . . Total Turns 150 | . . . . . . . . . . . . 79 71 . . Longest Duration 34 | . . . . . . . . . . . . 33 34 . . Martial Activations . | . . . . . . . . . . . . . . . . Shielding Activations . | . . . . . . . . . . . . . . . . Robots Disrupted 1 | . . . . . . . . . . . 1 . . . . Combat Hostiles . | . . . . . . . . . . . . . . . . Robots Corrupted 1 | . . . . . . . . . . . . . . . 1 Combat Hostiles . | . . . . . . . . . . . . . . . . Parts Fried 4 | . . . . . . 1 . . . . . . . . 3 Impact Corruptions 1 | . . . . . . . . . . . . . . . 1 Robots Melted 3 | . . . . . . . . . 2 . . . 1 . . Combat Hostiles 3 | . . . . . . . . . 2 . . . 1 . . Parts Melted 17 | . . . . . 1 . . . 13 . . . 3 . . Heat Transferred 6693 | 185 1110 200 . . . 124 . 350 3636 . 187 . 703 198 . Parts Sabotaged . | . . . . . . . . . . . . . . . . Parts Stolen . | . . . . . . . . . . . . . . . . Parts Stripped . | . . . . . . . . . . . . . . . . Power Chain Reactions 4 | . . 3 . . . . . . . . 1 . . . . Alert | -11 -10 -9 -9 -7 -6 -6 -6 -6 -6 -6 -6 -5 -4 -4 -4 ------- Run | Yrd Mat Mat Min Zio Pro Fac Gar Fac Ext Cet Arc Fac Fac Gar Fac Maximum Alert Level 4 | . 1 2 1 . . 2 4 3 3 3 2 4 4 4 3 Low Security (%) 18 | 100 81 18 42 . . 58 . . . . 42 23 . . . Level 1 17 | . 18 28 57 . . 15 5 . 20 53 36 10 . . . Level 2 30 | . . 53 . . . 25 27 10 65 35 20 32 46 . 34 Level 3 25 | . . . . . . . 32 89 13 11 . 29 53 69 65 Level 4 6 | . . . . . . . 35 . . . . 4 . 30 . Level 5 . | . . . . . . . . . . . . . . . . High Security . | . . . . . . . . . . . . . . . . Max Security . | . . . . . . . . . . . . . . . . Peak Influence 1300 | 5 258 658 253 . . 552 1279 1038 769 772 483 1141 1101 1300 957 Initial 767 | . . 89 253 . . 54 382 671 460 410 295 16 553 767 682 Average 529 | 1 80 373 208 . . 223 872 917 492 432 248 517 704 1000 728 Influence Increases 11182 | 15 491 1152 5 . 635 946 1047 554 947 951 287 1651 1204 543 754 Destroy 0b10 Robot/C 5480 | . 260 680 . . 400 460 680 180 500 440 80 740 720 . 340 Destroy 0b10 Robot/NC 420 | 15 35 65 5 . 5 25 . 30 45 10 40 45 60 . 40 Destroy Leader 976 | . 54 218 . . 50 94 40 34 64 40 . 170 132 . 80 Allied During Kill 1533 | . . . . . 180 64 50 1 196 432 96 380 48 . 86 Successful Hack 66 | . . . . . . 28 6 4 21 3 . 4 . . . Disable Machine 960 | . 75 45 . . . 240 30 225 60 . 60 75 105 15 30 Anti-Garrison Action 650 | . . . . . . . 150 . . . . . . 500 . Destroy Structure 902 | . 52 54 . . . 35 76 65 61 26 11 222 94 28 178 Lose Combat Pursuer 195 | . 15 90 . . . . 15 15 . . . 15 45 . . Influence Decreases 10278 | 15 280 713 497 158 548 487 314 892 1155 945 978 570 1236 340 1150 Entered New Map 4286 | . . 122 397 158 . 33 164 608 481 323 444 32 576 330 618 Time Decay 4682 | 15 250 571 100 . 368 374 . 214 494 482 534 428 490 . 362 Lost Part 660 | . 30 20 . . 40 40 90 70 60 . . 40 130 10 130 Lost Ally 650 | . . . . . 140 40 60 . 120 140 . 70 40 . 40 Squads Dispatched 42 | . 2 4 . . 1 6 . 3 1 . . 11 7 . 7 Investigation 8 | . . 2 . . . 3 . . 1 . . 1 . . 1 Extermination 9 | . . . . . . 1 . 1 . . . 3 2 . 2 Reinforcement 19 | . 2 2 . . . 1 . 2 . . . 7 3 . 2 Assault 4 | . . . . . 1 . . . . . . . 2 . 1 Garrison 2 | . . . . . . 1 . . . . . . . . 1 Intercept . | . . . . . . . . . . . . . . . . Searches Triggered . | . . . . . . . . . . . . . . . . Construction Impeded 4 | . . 1 . . . 1 . . . . . . 1 . 1 Haulers Reinforced 4 | . . . . . . . . 1 . . . 3 . . . Active Scanning Responses . | . . . . . . . . . . . . . . . . Cargo Convoy Interrupts 1 | . . . . . . . . . . . . . . . 1 Stealth | -11 -10 -9 -9 -7 -6 -6 -6 -6 -6 -6 -6 -5 -4 -4 -4 --------- Run | Yrd Mat Mat Min Zio Pro Fac Gar Fac Ext Cet Arc Fac Fac Gar Fac Distress Signals 19 | . 1 7 . . . . . 1 2 2 . 1 3 . 2 Communications Jammed . | . . . . . . . . . . . . . . . . Distress Signals . | . . . . . . . . . . . . . . . . Times Spotted 359 | . 26 45 . . 20 24 41 16 30 21 22 32 44 . 38 Peak Tracking Total 12 | . 5 6 . . 7 4 5 3 4 5 2 6 7 . 12 Tactical Retreats 12 | . 1 5 . . . . 1 1 . . . 1 3 . . Traps | -11 -10 -9 -9 -7 -6 -6 -6 -6 -6 -6 -6 -5 -4 -4 -4 ------- Run | Yrd Mat Mat Min Zio Pro Fac Gar Fac Ext Cet Arc Fac Fac Gar Fac Traps Triggered 11 | . . 1 . . . 2 2 2 . . . . 3 . 1 Indirectly . | . . . . . . . . . . . . . . . . Trap Hack Attempts . | . . . . . . . . . . . . . . . . Triggered . | . . . . . . . . . . . . . . . . Disarmed . | . . . . . . . . . . . . . . . . Reprogrammed . | . . . . . . . . . . . . . . . . Reused . | . . . . . . . . . . . . . . . . Traps Extracted . | . . . . . . . . . . . . . . . . Installed . | . . . . . . . . . . . . . . . . Triggered . | . . . . . . . . . . . . . . . . Machines | -11 -10 -9 -9 -7 -6 -6 -6 -6 -6 -6 -6 -5 -4 -4 -4 ---------- Run | Yrd Mat Mat Min Zio Pro Fac Gar Fac Ext Cet Arc Fac Fac Gar Fac Machines Disabled 68 | . 5 3 . . . 16 4 15 6 . 4 5 7 1 2 Max in Single Turn 15 | . 2 1 . . . 15 2 5 1 . 1 2 2 1 . Phase Generator 1 | . . . . . . . 1 . . . . . . . . Machines Repaired . | . . . . . . . . . . . . . . . . Machines Dismantled . | . . . . . . . . . . . . . . . . Machines Sabotaged . | . . . . . . . . . . . . . . . . Overloaded Fab Kills . | . . . . . . . . . . . . . . . . Hacking | -11 -10 -9 -9 -7 -6 -6 -6 -6 -6 -6 -6 -5 -4 -4 -4 --------- Run | Yrd Mat Mat Min Zio Pro Fac Gar Fac Ext Cet Arc Fac Fac Gar Fac Machines Accessed 20 | . 1 2 . . . 3 1 1 6 2 1 2 1 . . Terminals 14 | . 1 2 . . . . 1 1 6 2 . 1 . . . Fabricators 1 | . . . . . . 1 . . . . . . . . . Repair Stations 1 | . . . . . . 1 . . . . . . . . . Recycling Units . | . . . . . . . . . . . . . . . . Scanalyzers 1 | . . . . . . . . . . . . 1 . . . Garrison Access 2 | . . . . . . 1 . . . . . . 1 . . Total Hacks 55 | . 3 3 . . . 8 4 1 12 2 16 4 2 . . Successful 33 | . 2 . . . . 5 1 1 3 2 16 2 1 . . Failed 22 | . 1 3 . . . 3 3 . 9 . . 2 1 . . Catastrophic 4 | . . 1 . . . 1 1 . 1 . . . . . . Database Lockouts . | . . . . . . . . . . . . . . . . Manual 152 | . 3 3 . . . 8 9 12 25 1 53 18 7 10 3 Terminals 26 | . 3 3 . . . . 4 1 12 2 . 1 . . . Fabricators 2 | . . . . . . 2 . . . . . . . . . Repair Stations 3 | . . . . . . 3 . . . . . . . . . Recycling Units . | . . . . . . . . . . . . . . . . Scanalyzers 3 | . . . . . . . . . . . . 3 . . . Garrison Access 5 | . . . . . . 3 . . . . . . 2 . . Terminal Hacks 24 | . . . . . . . 1 1 3 2 16 1 . . . Record 17 | . . . . . . . . . . 1 16 . . . . Open Door 6 | . . . . . . . 1 1 3 1 . . . . . Open DSF 1 | . . . . . . . . . . . . 1 . . . Fabricator Hacks 2 | . . . . . . 2 . . . . . . . . . Load Schematic 1 | . . . . . . 1 . . . . . . . . . Build 1 | . . . . . . 1 . . . . . . . . . Repair Station Hacks 2 | . . . . . . 2 . . . . . . . . . Scan Component 1 | . . . . . . 1 . . . . . . . . . Repair 1 | . . . . . . 1 . . . . . . . . . Recycling Unit Hacks . | . . . . . . . . . . . . . . . . Scanalyzer 1 | . . . . . . . . . . . . 1 . . . Insert Component 1 | . . . . . . . . . . . . 1 . . . Garrison Access Hacks 2 | . . . . . . 1 . . . . . . 1 . . Unlock Access 2 | . . . . . . 1 . . . . . . 1 . . Unauthorized Hacks 2 | . 2 . . . . . . . . . . . . . . Terminals 2 | . 2 . . . . . . . . . . . . . . Botnet 1 | . 1 . . . . . . . . . . . . . . Skim 1 | . 1 . . . . . . . . . . . . . . Fabricators . | . . . . . . . . . . . . . . . . Repair Stations . | . . . . . . . . . . . . . . . . Recycling Units . | . . . . . . . . . . . . . . . . Scanalyzers . | . . . . . . . . . . . . . . . . Garrison Access . | . . . . . . . . . . . . . . . . Data Cores Recovered 1 | . . . . . . . . . 1 . . . . . . Used . | . . . . . . . . . . . . . . . . Hacking Detections 13 | . . 1 . . . 3 1 1 5 . . 2 . . . Full Trace Events 6 | . . 1 . . . 3 . . 1 . . 1 . . . Feedback Events 1 | . . . . . . 1 . . . . . . . . . Corruption 1 | . . . . . . 1 . . . . . . . . . Feedback Blocked . | . . . . . . . . . . . . . . . . Robot Schematics Acquired 9 | . . . . 4 . . . . . . . . . 5 . Robots Built . | . . . . . . . . . . . . . . . . Authchips . | . . . . . . . . . . . . . . . . Time . | . . . . . . . . . . . . . . . . Total Robot Build Rating . | . . . . . . . . . . . . . . . . Part Schematics Acquired 23 | . . . . 15 . . . . . . . . . 8 . Parts Built 2 | . . . . . . 2 . . . . . . . . . Authchips . | . . . . . . . . . . . . . . . . Time 47 | . . . . . . 47 . . . . . . . . . Total Part Build Rating 10 | . . . . . . 10 . . . . . . . . . Parts Repaired 1 | . . . . . . 1 . . . . . . . . . Time 56 | . . . . . . 56 . . . . . . . . . Parts Recycled . | . . . . . . . . . . . . . . . . Recycled Matter . | . . . . . . . . . . . . . . . . Retrieved Matter . | . . . . . . . . . . . . . . . . Retrieved Components . | . . . . . . . . . . . . . . . . Parts Scanalyzed 1 | . . . . . . . . . . . . 1 . . . Part Schematics Acquired . | . . . . . . . . . . . . . . . . Parts Damaged . | . . . . . . . . . . . . . . . . Bothacking | -11 -10 -9 -9 -7 -6 -6 -6 -6 -6 -6 -6 -5 -4 -4 -4 ------------ Run | Yrd Mat Mat Min Zio Pro Fac Gar Fac Ext Cet Arc Fac Fac Gar Fac Used RIF Installer . | . . . . . . . . . . . . . . . . Robots Hacked 1 | . . . . . . . . . . . 1 . . . . Non-combat 1 | . . . . . . . . . . . 1 . . . . Combat . | . . . . . . . . . . . . . . . . Robot Hacks Applied 8 | . . . . . . . . . . . 8 . . . . parse_system 1 | . . . . . . . . . . . 1 . . . . no_distress 1 | . . . . . . . . . . . 1 . . . . check_alert 6 | . . . . . . . . . . . 6 . . . . Relay Couplers Released . | . . . . . . . . . . . . . . . . Fabnet Peak Effective % . | . . . . . . . . . . . . . . . . Robots Rewired 12 | . . . . . 1 . 3 . 5 . 1 . . 2 . Allies Hacked . | . . . . . . . . . . . . . . . . Hacks Repelled . | . . . . . . . . . . . . . . . . Allies | -11 -10 -9 -9 -7 -6 -6 -6 -6 -6 -6 -6 -5 -4 -4 -4 -------- Run | Yrd Mat Mat Min Zio Pro Fac Gar Fac Ext Cet Arc Fac Fac Gar Fac Total Allies 48 | . . . . 9 1 1 3 4 15 5 1 3 2 4 . Largest Group 9 | . . . . 9 8 2 3 3 8 8 5 5 3 5 5 Highest-Rated Group 569 | . . . . 273 255 178 143 210 451 569 372 372 135 437 431 Highest-Rated Ally 159 | . . . . 39 39 141 51 70 159 159 96 96 135 135 135 Zionite Dispatches 10 | . . . . . . 1 . 2 3 . . 2 2 . . Light 3 | . . . . . . . . 1 2 . . . . . . Hacker 1 | . . . . . . . . . . . . 1 . . . Demo 1 | . . . . . . . . . 1 . . . . . . Hero 2 | . . . . . . 1 . . . . . . 1 . . Kinetic Resupply 1 | . . . . . . . . . . . . . 1 . . Explosive Resupply 1 | . . . . . . . . 1 . . . . . . . Heavy Resupply 1 | . . . . . . . . . . . . 1 . . . Total Orders . | . . . . . . . . . . . . . . . . Ally Attacks 453 | . . . . . 67 46 24 1 77 94 15 81 23 . 25 Total Damage 13997 | . . . . . 2019 1739 407 520 2173 2180 417 2742 922 . 878 Kills 107 | . . . . . 11 17 6 3 15 16 1 23 10 . 5 Allies Corrupted 1 | . . . . . 1 . . . . . . . . . . Allies Melted . | . . . . . . . . . . . . . . . . Intel | -11 -10 -9 -9 -7 -6 -6 -6 -6 -6 -6 -6 -5 -4 -4 -4 ------- Run | Yrd Mat Mat Min Zio Pro Fac Gar Fac Ext Cet Arc Fac Fac Gar Fac Active Infowar (turns) 3737 | 36 529 . . . . . . . 1 . . . 1047 1365 759 Optics 820 | . . . . . . . . . . . . . 820 . . Sensors 2364 | . . . . . . . . . . . . . 240 1365 759 Structural 1 | . . . . . . . . . 1 . . . . . . Seismic 565 | 36 529 . . . . . . . . . . . . . . Robot Analysis Total . | . . . . . . . . . . . . . . . . Derelict Logs Recovered 2 | . . . . 1 1 . . . . . . . . . . Drone Launches . | . . . . . . . . . . . . . . . . Drone Recoveries . | . . . . . . . . . . . . . . . . Zionite Intel Received 11 | . . . . . . . 2 2 2 . . 3 . 2 . Branch Access 2 | . . . . . . . . 1 . . . 1 . . . Emergency Access 1 | . . . . . . . 1 . . . . . . . . Guard Positions 2 | . . . . . . . . . 1 . . 1 . . . Prototype Stockpiles 1 | . . . . . . . 1 . . . . . . . . Prototype Schematics 1 | . . . . . . . . . . . . . . 1 . Unaware Schematics 1 | . . . . . . . . . . . . . . 1 . Trap Installations 2 | . . . . . . . . . 1 . . 1 . . . Active Terminals 1 | . . . . . . . . 1 . . . . . . . Exploration | -11 -10 -9 -9 -7 -6 -6 -6 -6 -6 -6 -6 -5 -4 -4 -4 ------------- Run | Yrd Mat Mat Min Zio Pro Fac Gar Fac Ext Cet Arc Fac Fac Gar Fac Turns Passed 17306 | 110 895 1737 209 1894 852 862 1355 449 1316 1243 1501 1391 1288 1365 839 Spaces Moved 8798 | 65 358 838 144 1206 437 432 889 234 533 565 427 583 623 914 550 Core 31 | 14 . . . . . . . . . . . . . . 17 Treads 3071 | . 88 723 144 1206 344 . . . . . . 276 290 . . Legs 5384 | 51 270 . . . . 432 889 234 533 565 427 307 229 914 533 Wheels 312 | . . 115 . . 93 . . . . . . . 104 . . Hover . | . . . . . . . . . . . . . . . . Flight . | . . . . . . . . . . . . . . . . Fastest Speed 50 | 50 120 125 145 145 140 120 120 114 114 114 186 160 120 130 50 Average Speed 147 | 104 179 148 145 145 156 120 120 138 184 154 187 175 146 130 122 Slowest Speed 260 | 120 190 240 145 145 237 120 120 187 188 188 188 190 260 130 215 Overloaded Moves . | . . . . . . . . . . . . . . . . Propulsion Burnouts . | . . . . . . . . . . . . . . . . Robots Hopped . | . . . . . . . . . . . . . . . . Potential Cave-ins . | . . . . . . . . . . . . . . . . Cave-ins Triggered . | . . . . . . . . . . . . . . . . Exploration Rate (%) 53 | 5 73 89 31 90 70 12 95 8 74 77 88 13 21 93 15 Regions Visited 15 Branch Regions 6 Pre-discovered Areas 3 | . . . . 2 1 . . . . . . . . . . Known Exits Taken 3 | . . . . . . 1 . 1 . . . . 1 . . Unknown Exits Taken 10 | 1 1 1 1 1 1 . . . 1 1 1 1 . . . Scrap Searched 6 | . . . . 4 2 . . . . . . . . . . Spaces Dug 26 | . . . . . . 2 . 1 5 . . 12 1 2 3 Terrain Destroyed 609 | . 57 53 . . 5 37 112 65 33 8 15 79 48 5 92 Melee . | . . . . . . . . . . . . . . . . Projectile 187 | . . . . . 5 9 3 6 33 8 15 48 24 5 31 AOE 422 | . 57 53 . . . 28 109 59 . . . 31 24 . 61 Terrain Rammed . | . . . . . . . . . . . . . . . . Walls Destroyed . | . . . . . . . . . . . . . . . . Machines Disabled . | . . . . . . . . . . . . . . . . Actions | -11 -10 -9 -9 -7 -6 -6 -6 -6 -6 -6 -6 -5 -4 -4 -4 --------- Run | Yrd Mat Mat Min Zio Pro Fac Gar Fac Ext Cet Arc Fac Fac Gar Fac Total 11809 | 92 494 1105 144 1349 535 659 1075 318 758 863 1056 786 839 1070 666 Wait 1410 | . 22 79 . 134 32 110 67 1 50 183 533 57 84 26 32 Move 8780 | 65 357 837 143 1205 436 432 884 233 532 564 426 582 622 912 550 Hop . | . . . . . . . . . . . . . . . . Pick Up 208 | 10 25 24 . 3 9 21 10 18 13 19 10 17 12 11 6 Fast Attach 71 | 3 1 5 . . . . 1 3 8 14 5 8 16 5 2 Attach 108 | 4 3 3 . . 5 16 8 13 9 5 6 11 16 1 8 Detach 21 | . . . . . . . 1 3 2 3 3 2 5 . 2 Swap 115 | . 13 16 . 2 5 5 10 4 16 14 4 7 1 10 8 Drop 204 | . 8 31 . 3 8 10 11 10 18 28 13 23 12 17 12 Fire 691 | 6 64 109 . 1 30 62 60 32 49 33 45 77 70 11 42 Melee 17 | . . . . 1 7 . . . . . 9 . . . . Ram 2 | . . . . . . . . . . . . . . . 2 Kick 13 | 4 1 . . . . 3 . 1 2 . . . . . 2 Crush 5 | . . 1 1 . . . . . . . . 2 1 . . Escape Stasis 2 | . . . . . . . 2 . . . . . . . . Rewire 162 | . . . . . 3 . 21 . 59 . 2 . . 77 . Trap . | . . . . . . . . . . . . . . . . Miscellaneous . | . . . . . . . . . . . . . . . . Route ------- -11/Scrapyard -10/Materials (discovered 4 exits: *Mat x2 / [*Min] / [*Sub]) -9/Materials (discovered 6 exits: [*Mat x3] / [*Min] / [*Sto x2]) -9/Mines (discovered 2 exits: [*Mat] / [*Zio]) -7/Zion -6/Proximity Caves -6/Factory (discovered 2 exits: Low / Gar) -6/Garrison (discovered 4 exits: *Fac x4) -6/Factory (discovered 5 exits: *Fac / Low x2 / *Ext x2) -6/Extension (discovered 2 exits: *Fac / *Cet) -6/Cetus (discovered 2 exits: *Fac / *Arc) -6/Archives (discovered 3 exits: *Fac / [*Hub x2]) -5/Factory (discovered 3 exits: *Fac / Upp x2) -4/Factory -4/Garrison (discovered 3 exits: *Fac x3) -4/Factory (discovered 1 exit: [*Upp]) History --------- Turn | Location | Event 11 | -11/Scrapyard | Discovered new exit (range 14) 111 | -11/Scrapyard | Entered Materials 320 | -10/Materials | Build established: Mutant 650 | -10/Materials | Discovered new exit (range 6) 682 | -10/Materials | Discovered new exit (range 10) 833 | -10/Materials | Core integrity fell below 50% 846 | -10/Materials | Discovered new exit (range 11) 869 | -10/Materials | Lost 3 parts (1n2w) 977 | -10/Materials | Discovered new exit (range 3) 1006 | -10/Materials | Entered another Materials area 1006 | -9/Materials | Evolved 2 slots: Propulsion x1, Weapon x1 1506 | -9/Materials | Discovered new exit (range 16) 1629 | -9/Materials | Build established: Tank 1670 | -9/Materials | Discovered new exit (range 16) 1716 | -9/Materials | Discovered new exit (range 8) 1884 | -9/Materials | Discovered new exit (range 14) 2176 | -9/Materials | Discovered new exit (range 16) 2521 | -9/Materials | Discovered new exit (range 12) 2743 | -9/Materials | Entered Mines 2752 | -9/Mines | Met a Derelict bent on vengeance 2819 | -9/Mines | Discovered new exit (range 5) 2881 | -9/Mines | A Derelict revealed a hidden shortcut to a safe place 2920 | -9/Mines | Assembled infested the area 2925 | -9/Mines | Assisted by a Guerilla fighting off Assembled 2952 | -9/Mines | Entered Zion 3131 | -7/Zion | Discovered new exit (range 9) 3173 | -7/Zion | Gained Derelict followers 3364 | -7/Zion | Learned location of Warlord (-5) 3401 | -7/Zion | Gained Derelict followers 4001 | -7/Zion | Met Imprinter 4024 | -7/Zion | Imprinted 4026 | -7/Zion | Declared Zion's savior 4309 | -7/Zion | Found GAL Module 4846 | -7/Zion | Entered Proximity Caves 4846 | -6/Proximity Caves | Accompanied by 9 allies 4895 | -6/Proximity Caves | Lost 3 allies 5081 | -6/Proximity Caves | Attracted the attention of an 0b10 outpost 5087 | -6/Proximity Caves | Core integrity fell below 50% 5420 | -6/Proximity Caves | Build established: Mutant 5671 | -6/Proximity Caves | Discovered new exit (range 11) 5698 | -6/Proximity Caves | Entered Factory 5698 | -6/Factory | Accompanied by 2 allies 5698 | -6/Factory | Evolved 6 slots: Propulsion x2, Utility x4 5699 | -6/Factory | Identified exit to Lower Caves 5772 | -6/Factory | Repaired KE Penetrator 5788 | -6/Factory | Build established: Scavenger-Mutant 5943 | -6/Factory | Zion hero teleported in (1C-UTU) 6366 | -6/Factory | Fabricated Coil Gun? 6486 | -6/Factory | Garrison activated, responded to threat 6510 | -6/Factory | Build established: Scavenger-Tank 6560 | -6/Factory | Identified exit to Garrison 6560 | -6/Factory | Entered Garrison 6604 | -6/Garrison | Retrieved Zion intel report: Emergency Access 6622 | -6/Garrison | Triggered checkpoint 6707 | -6/Garrison | Attempted to install RIF, but system incompatible 6899 | -6/Garrison | Phase Generator disabled 6907 | -6/Garrison | Spotted Striker 6908 | -6/Garrison | Spotted Executioner 6974 | -6/Garrison | Triggered checkpoint 6976 | -6/Garrison | Triggered checkpoint 7090 | -6/Garrison | Triggered checkpoint 7118 | -6/Garrison | Discovered new exit (range 5) 7214 | -6/Garrison | Discovered new exit (range 11) 7272 | -6/Garrison | Triggered checkpoint 7276 | -6/Garrison | Triggered checkpoint 7390 | -6/Garrison | Discovered new exit (range 12) 7398 | -6/Garrison | Retrieved Zion intel report: Prototype Stockpiles 7432 | -6/Garrison | Triggered checkpoint 7441 | -6/Garrison | Build established: Scavenger-Gunner 7560 | -6/Garrison | Discovered new exit (range 8) 7572 | -6/Garrison | Triggered checkpoint 7649 | -6/Garrison | Attempted to access garrison exit controls, blocked by remote lockdown 7764 | -6/Garrison | Attempted to access garrison exit controls, blocked by remote lockdown 7915 | -6/Garrison | Entered Factory 7959 | -6/Factory | Retrieved Zion intel report: Active Terminals 7960 | -6/Factory | Zion Light squad teleported in 7971 | -6/Factory | Found Prototype Protection 7991 | -6/Factory | Lost 3 allies 8033 | -6/Factory | Identified Zio. Weapon Casing 8155 | -6/Factory | Retrieved Zion intel report: Branch Access 8155 | -6/Factory | Identified exit to Extension 8156 | -6/Factory | Zion Explosive Resupply teleported in 8244 | -6/Factory | Lost 3 parts (1p1n1u) 8288 | -6/Factory | Core integrity fell below 50% 8303 | -6/Factory | Discovered new exit (range 10) 8364 | -6/Factory | Entered Extension 8448 | -6/Extension | Retrieved Zion intel report: Guard Positions 8452 | -6/Extension | Retrieved Zion intel report: Trap Installations 8704 | -6/Extension | Zion Demo squad teleported in 8715 | -6/Extension | Rescued a captive Derelict 8823 | -6/Extension | Zion Light squad teleported in 9020 | -6/Extension | Spotted B-75 Beast 9064 | -6/Extension | Disrupted transfer network 9072 | -6/Extension | Destroyed B-75 Beast 9095 | -6/Extension | Lost 5 allies 9099 | -6/Extension | Spotted B-75 Beast 9121 | -6/Extension | Destroyed B-75 Beast 9148 | -6/Extension | Lost 4 parts (1p2n1u) 9256 | -6/Extension | Zion Light squad teleported in 9393 | -6/Extension | Rescued A7 9431 | -6/Extension | Rescued a captive Derelict 9639 | -6/Extension | Discovered new exit (range 10) 9640 | -6/Extension | Discovered new exit (range 6) 9680 | -6/Extension | Entered Cetus 9680 | -6/Cetus | Accompanied by 8 allies (A7) 9685 | -6/Cetus | Acquired a Cetus Manufacturing Module code from A7 9700 | -6/Cetus | Spotted Cetus Guard 9701 | -6/Cetus | Spotted Cetus Guard 9705 | -6/Cetus | Spotted Cetus Guard 9721 | -6/Cetus | Spotted Cetus Guard 9725 | -6/Cetus | Allies destroyed Cetus Guard 9727 | -6/Cetus | Allies destroyed Cetus Guard 9728 | -6/Cetus | Destroyed Cetus Guard 9744 | -6/Cetus | Allies destroyed Cetus Guard 9760 | -6/Cetus | Lost 4 allies 9832 | -6/Cetus | Started Cetus Manufacturing Module 9857 | -6/Cetus | Manufactured an Enhanced Grunt 9882 | -6/Cetus | Manufactured an Enhanced Grunt 9883 | -6/Cetus | Discovered new exit (range 15) 9907 | -6/Cetus | Manufactured an Enhanced Grunt 9927 | -6/Cetus | Spotted Cetus Guard 9927 | -6/Cetus | Spotted Cetus Guard 9930 | -6/Cetus | Spotted Cetus Guard 9930 | -6/Cetus | Spotted Cetus Guard 9932 | -6/Cetus | Manufactured an Enhanced Grunt 9934 | -6/Cetus | Allies destroyed Cetus Guard 9942 | -6/Cetus | Allies destroyed Cetus Guard 9952 | -6/Cetus | Allies destroyed Cetus Guard 9953 | -6/Cetus | Destroyed Cetus Guard 9957 | -6/Cetus | Manufactured an Enhanced Grunt 9960 | -6/Cetus | Discovered new exit (range 16) 9966 | -6/Cetus | Scared off Revision 17 10016 | -6/Cetus | Build established: Scavenger-Tank 10430 | -6/Cetus | Security sweep announced 10699 | -6/Cetus | Found Zio. Weapon Casing 10844 | -6/Cetus | Murdered A7 10850 | -6/Cetus | Found Prototype Protection 10850 | -6/Cetus | Identified Med. Regenerative Plating 10855 | -6/Cetus | Extracted ID and sensor layout for unrecognized location from A7's data core 10876 | -6/Cetus | System corruption reached 10% 10923 | -6/Cetus | Entered Archives 10923 | -6/Archives | Accompanied by 4 allies 11004 | -6/Archives | Discovered new exit (range 15) 11074 | -6/Archives | Discovered new exit (range 15) 11115 | -6/Archives | Discovered new exit (range 14) 11149 | -6/Archives | Build established: Scavenger-Gunner 11697 | -6/Archives | Build established: Scavenger-Mutant 11710 | -6/Archives | Unable to access archive contents 12061 | -6/Archives | Unable to access archive contents 12093 | -6/Archives | Unable to access archive contents 12424 | -6/Archives | Entered Factory 12424 | -5/Factory | Accompanied by 5 allies 12424 | -5/Factory | Evolved 2 slots: Power x1, Propulsion x1 12572 | -5/Factory | Identified exit to DSF 12635 | -5/Factory | Build established: Scavenger-Gunner 12885 | -5/Factory | Retrieved Zion intel report: Guard Positions 12886 | -5/Factory | Zion Heavy Resupply teleported in 12897 | -5/Factory | Discovered new exit (range 16) 13399 | -5/Factory | Build established: Scavenger-Tank 13645 | -5/Factory | Destroyed 7 combat bots 13679 | -5/Factory | Retrieved Zion intel report: Trap Installations 13695 | -5/Factory | Retrieved Zion intel report: Branch Access 13695 | -5/Factory | Identified exit to Upper Caves 13696 | -5/Factory | Zion Hacker squad teleported in 13815 | -5/Factory | Entered another Factory area 13815 | -4/Factory | Accompanied by 2 allies 13815 | -4/Factory | Evolved 2 slots: Utility x2 13839 | -4/Factory | Zion Kinetic Resupply teleported in 14315 | -4/Factory | First assault squad dispatched 14413 | -4/Factory | Destroyed 8 combat bots 14532 | -4/Factory | Destroyed 8 combat bots 14563 | -4/Factory | Lost 9 parts (1p4n2u2w) 14659 | -4/Factory | Zion hero teleported in (AD-0RF) 15077 | -4/Factory | Build established: Scavenger-Gunner 15089 | -4/Factory | Identified exit to Garrison 15103 | -4/Factory | Entered Garrison 15103 | -4/Garrison | Discovered recently destroyed garrison 15103 | -4/Garrison | Accompanied by 1 ally (AD-0RF) 15159 | -4/Garrison | Found embedded Infiltrators 15293 | -4/Garrison | Found Unknown Hackware 15293 | -4/Garrison | Identified Relay Coupler [Proto] 15744 | -4/Garrison | Discovered new exit (range 10) 15808 | -4/Garrison | Retrieved Zion intel report: Prototype Schematics 15940 | -4/Garrison | Found Heavy Servo Lattice 15958 | -4/Garrison | Discovered new exit (range 9) 15991 | -4/Garrison | Retrieved Zion intel report: Unaware Schematics 16351 | -4/Garrison | Attempted to access garrison exit controls, blocked by remote lockdown 16432 | -4/Garrison | Discovered new exit (range 10) 16468 | -4/Garrison | Entered Factory 16468 | -4/Factory | Accompanied by 5 allies (AD-0RF) 16470 | -4/Factory | Build established: Gunner 16726 | -4/Factory | Discovered new exit (range 13) 16858 | -4/Factory | Lost 3 allies 16968 | -4/Factory | First assault squad dispatched 17216 | -4/Factory | Cargo convoy interrupted 17243 | -4/Factory | Core integrity fell below 50% 17267 | -4/Factory | Garrison activated, responded to threat 17291 | -4/Factory | Destroyed 7 combat bots 17295 | -4/Factory | Released all parts (10) 17299 | -4/Factory | Core integrity fell below 20% 17307 | -4/Factory | Destroyed by G-67 Veteran with Plasma Rifle Last Messages --------------- 17299_ K-01 Serf collects debris. 17299_ U-05 Engineer lays Concrete. 17300_ R-10 Processor collects Corrupted Arm. Huge Wheel. 17300_ U-05 Engineer builds a Wall. 17300_ U-05 Engineer lays Concrete. 17301_ K-01 Serf collects debris. 17301_ U-05 Engineer lays Concrete. 17301_ Penetrated by Slug. 17302_ Acquired 5 matter. 17302_ U-05 Engineer builds a Wall. 17303_ U-05 Engineer lays Concrete. 17303_ R-10 Processor collects Corrupted Wheel. 17303_ K-01 Serf collects debris. 17303_ U-05 Engineer lays Concrete. 17304_ K-01 Serf collects debris. 17304_ U-05 Engineer lays Concrete. 17304_ U-05 Engineer builds a Wall. 17305_ U-05 Engineer lays Concrete. 17306_ R-10 Processor collects Adv. Cryofiber Web. 17306_ Slammed into A-15 Conveyor. Map ----- +----------------------------------------------------+ | ?????????????????????????????????????????????????? | | ?????????????????????????????????????????????????? | | ?????????????????????????????????????????????????? | | ?????????????????????????????????????????????????? | | ?????????????????????????????????????????????????? | | ?????????????????????????????????????????????????? | | ?????????????????????????????????????????????????? | | ?????????????????????????????????????????????????? | | ?????????????????????????????????????????????????? | | ?????????????????????????????????????????????????? | | ?????????????????????????????????????????????????? | | ?????????????????????????????????????????????????? | | ?????????????????????????????????????????????????? | | ?????????????????????????????????????????????????? | | ?????????????????????????????????????????????????? | | ?????????????????????????????????????????????????? | | ?????????????????????????+???????????????????????? | | ????????????????????????# #??????????????????????? | | ????????????????????????# #??????????????????????? | | ????????????????????????# #??????????????????????? | | ????????????????????????# #??????????????????????? | | ????????????????????????# #??????????????????????? | | ????????????????????????# #??????????????????????? | | ????????????????????????#A#??????????????????????? | | ?????????????????????# ## #??????????????????????? | | ?????????????????########@#??????????????????????? | | ?????????? % u #??????????##??????????? | | ????????????# ####### #?????????? ??????????? | | ?????????????? ##### ######????? ??????????? | | ??????????????? # * % """ #????? ??????????? | | ???????????????? # =%% ] "Y" #????? ??????????? | | ????????????????? # [ " " #????? ??????????? | | ?????????????????## k #????? ??????????? | | ?????????????????# % ##???? #?????????? | | ?????????????????# " %!% " " ## """" #?????????? | | ?????????????????## "" lu "" ## """" #?????????? | | ??????????????????# " !% " ## """" #?????????? | | ??????????????????#["" ghu ## """" #?????????? | | ??????????????????#[""p Rhk ## #?????????? | | ??????????????????#["""!lh= #?? #?????????? | | ??????????????????#!!=|*==%[ ##?? ?????????? | | ??????????????????###*![#/####### ####+### | | ??????????????????# !#%]] =% % | | ??????????????##??#####=%% %= % | | ??????????????# [ ????#= % ! | | ??????????????# ### %| | | ??????????????# " % ^ | | ??????????????# ##### ### ### #####+### | | ??????????????# ??????# # # ## ??????? | | ??????????????##????????? #### #????"" ????? | +----------------------------------------------------+ Best States ------------- Heat Dissipation 101 Energy Generation 47 Energy Capacity 535 Matter Stores 300 Matter Capacity 300 Sight Range 18 Robot Scan Range 18 Terrain Scan Density 10 Base Temperature (-) 200 Armor Coverage 900 Resistance: KI 20 Resistance: TH 20 Resistance: EX 50 Weapon Shielding 100 Weapon Cycling 25 Phase Shifting 15 Evasion (%) 70 Targeting Accuracy 12 Recoil Reduction 6 Offensive Hacking 10 Item Schematics ----------------- Plasma Cannon | -7/Zion | Archive Hvy. Machine Gun | -7/Zion | Archive Hvy. Flak Cannon | -7/Zion | Archive Imp. Field Recycling Unit | -7/Zion | Archive EM Shield | -7/Zion | Archive Coolant Injector | -7/Zion | Archive Enh. Gauss Cannon | -7/Zion | Archive Hyp. Coil Gun | -7/Zion | Archive Xenon Bombardment Thruster | -7/Zion | Archive Drone Bay | -7/Zion | Archive Imp. Salvage Targeting Computer | -7/Zion | Archive Coil Gun | -7/Zion | Archive Gauss Cannon | -7/Zion | Archive Imp. Hacking Suite | -7/Zion | Archive Core Analyzer | -7/Zion | Archive Exp. Heat Sink | -4/Garrison | Z-intel Adv. Thermal Defense Suite | -4/Garrison | Z-intel Adv. Variable Charge Gun | -4/Garrison | Z-intel Neutron Cannon | -4/Garrison | Z-intel Proton Burst Cannon | -4/Garrison | Z-intel Tiamat Missile Launcher | -4/Garrison | Z-intel Adv. Myomer Leg | -4/Garrison | Z-intel Imp. Energy Well | -4/Garrison | Z-intel Robot Schematics ------------------ A-02 Transporter | -7/Zion | Archive T-07 Excavator | -7/Zion | Archive B-36 Bruiser | -7/Zion | Archive D-83 Annihilator | -7/Zion | Archive G-67 Veteran | -4/Garrison | Z-intel K-01 Serf | -4/Garrison | Z-intel Y-64 Sentinel | -4/Garrison | Z-intel A-15 Conveyor | -4/Garrison | Z-intel M-22 Extractor | -4/Garrison | Z-intel Fabricated ------------ Coil Gun | x2 | -6/Factory Repaired ---------- KE Penetrator | 21% | -6/Factory Alien Tech Used ----------------- None Achievements -------------- Freeware Friend Of Zion Challenges ------------ None Game ------ Seed RemoteIonSpecial Manual? 0 Play Time 02:45:50 Cumulative 161.8 hours Start 2025.08.31 @ 20:33:11 End 2025.09.01 @ 22:23:21 Sessions 3 Manual Loads 0 Difficulty Rogue Special Mode None Game No. 224 Rogue 224 Adventurer 0 Explorer 0 Win Type - Total 1 Types 1/0/0/0/0/0/0/0/0/0 Lore% 71 Gallery% 66 Achievement% 57 Wizard Run 0 Options --------- Layout 0 ASCII 0 Keyboard 0 Movement Mouse Keybinds 0 Fullscreen 1 Font 16/SmallcapsGlow Map View 75x55 Zoom Use 0% Tactical HUD 1 Map Filters NONE Filters NONE Steam 1 RUN: f37a5fa5-44d5-4f92-95ae-959eee8370fb